Cogmind - Beta 11.2 @@@ ROGUE MODE // 2022.12.29 @ 22:35:06 Player: ChromeKnight Result: Destroyed by as-23105 with Assembled Shotgun Performance ------------- Evolutions (4) 2000 Regions Visited (10) 2000 Robots Destroyed (87) 435 Value Destroyed (2735) 2735 Prototype IDs (10) 200 Alien Tech Used (0) 0 Bonus (2057) 2057 TOTAL SCORE: 9427 Bonus ------- High Alert Combat Kills 72 Follower Combat Kills 74 Destroyed Z-Imprinter 1000 Triggered Deep Caves Wall 500 Exposed GOLEM Chamber 500 Friendly Fire -89 Cogmind --------- Core Integrity 0/850 Matter 140/300 Energy 8/100 System Corruption 0% Temperature Cool (0) Movement Core (50) Location -6/Deep Caves Parts ------- > --- POWER (1) -------- (None) > --- PROPULSION (5) --- (None) > --- UTILITY (7) ------ Advanced Visual Processing Unit > --- WEAPON (2) ------- (None) > --- INVENTORY (5) ---- Zionite Weapon Casing Long-range Missile Launcher Peak State ------------ > --- POWER ------------ Zionite Light DM Reactor > --- PROPULSION ------- Carbon-fiber Leg Carbon-fiber Leg Carbon-fiber Leg Carbon-fiber Leg Zionite Composite Leg I > --- UTILITY ---------- Advanced Visual Processing Unit Launcher Guidance Computer Weapon Cycler Zionite Weapon Casing Zionite Heavy Carapace Hardened Medium Armor Plating > --- WEAPON ----------- Rocket Array RU-N14's Throwing Claymores > --- INVENTORY -------- Zionite Weapon Casing Zionite Heavy Carapace Long-range Missile Launcher RU-N14's Throwing Claymores [Rating: 73] Favorites ----------- Power Neutrino Core Engine Light Ion Engine Power Core Neutrino Core Reactor Zionite Light DM Reactor Propulsion Gravmag System Leg Carbon-fiber Leg Hover Unit Gravmag System Utility Launcher Guidance Computer Device Weapon Cycler Storage Medium Storage Unit Processor Launcher Guidance Computer Hackware Hacking Suite Protection Hardened Medium Armor Plating Weapon Rocket Array Ballistic Gun Shotgun Ballistic Cannon Slug Cannon Launcher Rocket Array Special Weapon RU-N14's Throwing Claymores Impact Weapon Impact Mace Build | -11 -10 -9 -9 -8 -7 -6 -6 -6 -6 -6 ------- Run | Scr Mat Mat Min Mat Fac Fac Low Low Zio Dee Slots Evolved 8 | . . 2 . 2 2 2 . . . . Power . | . . . . . . . . . . . Propulsion 3 | . . 1 . 1 . 1 . . . . Utility 5 | . . 1 . 1 2 1 . . . . Weapon . | . . . . . . . . . . . Parts Attached 88 | 7 14 5 3 9 11 10 . 3 5 21 Power 10 | 1 1 . 1 1 2 . . . 1 3 Engine 3 | 1 . . 1 . 1 . . . . . Core 5 | . 1 . . 1 1 . . . 1 1 Reactor 2 | . . . . . . . . . . 2 Propulsion 20 | 2 4 2 . 4 . 1 . 1 . 6 Treads . | . . . . . . . . . . . Leg 9 | 2 2 . . . . . . . . 5 Wheel . | . . . . . . . . . . . Hover 11 | . 2 2 . 4 . 1 . 1 . 1 Flight . | . . . . . . . . . . . Utility 32 | 1 4 2 1 3 7 4 . 2 2 6 Device 8 | . 2 . . 1 2 1 . 1 1 . Storage 4 | 1 1 1 . . . . . 1 . . Processor 4 | . 1 . . 1 1 1 . . . . Hackware 1 | . . . . . 1 . . . . . Protection 15 | . . 1 1 1 3 2 . . 1 6 Artifact . | . . . . . . . . . . . Weapon 26 | 3 5 1 1 1 2 5 . . 2 6 Energy Gun . | . . . . . . . . . . . Energy Cannon . | . . . . . . . . . . . Ballistic Gun 7 | 3 4 . . . . . . . . . Ballistic Cannon 3 | . . . 1 . 1 1 . . . . Launcher 8 | . 1 1 . 1 . 2 . . 1 2 Special Weapon 5 | . . . . . . . . . 1 4 Impact Weapon 3 | . . . . . 1 2 . . . . Slashing Weapon . | . . . . . . . . . . . Piercing Weapon . | . . . . . . . . . . . Special Melee Weapon . | . . . . . . . . . . . Unidentified Prototypes 10 | . . . . . 1 3 . . 1 5 Parts Lost 26 | . . 2 . . . . . 4 . 20 Power 3 | . . 1 . . . . . . . 2 Propulsion 12 | . . 1 . . . . . 2 . 9 Utility 8 | . . . . . . . . 2 . 6 Weapon 3 | . . . . . . . . . . 3 Highest Loss Streak 13 | . . 2 . . . . . 2 . 13 To Critical Strikes . | . . . . . . . . . . . Average Slot Usage (%) 91 | . 96 96 99 93 99 93 100 92 84 82 Engine 2 | . 5 . 10 2 4 . . . . . Core 4 | . 8 9 . 6 2 6 6 6 6 1 Reactor 1 | . . . . . . . . . . 3 Leg 11 | . 26 . . . . . . . . 22 Hover 15 | . 1 31 33 29 30 26 33 28 20 3 Device 9 | . 9 . . 9 10 6 6 7 18 13 Storage 7 | . 14 11 11 9 7 6 6 6 6 1 Processor 12 | . 2 11 11 9 10 19 20 20 20 15 Protection 7 | . . 10 11 9 11 13 13 8 . 9 Ballistic Gun 6 | . 27 11 5 . . . . . . . Ballistic Cannon 1 | . . . 5 9 7 3 . . . . Launcher 5 | . . 11 11 9 7 6 6 6 5 4 Special Weapon 1 | . . . . . . . . . . 4 Impact Weapon 1 | . . . . . . 2 6 6 6 . Naked Turns . | . . . . . . . . . . . Heaviest Build 44 | 12 22 21 19 33 44 42 38 43 36 43 Greatest Support 84 | 20 20 18 18 42 45 54 54 54 36 84 Greatest Overweight (x) 5 | . 1 1 1 . . . . . . 5 Average Overweight (x) . | . . . . . . . . . . . Largest Inventory Capacity 10 | 8 10 10 8 8 8 8 8 10 10 10 Average Capacity 8 | 6 9 8 8 8 8 8 8 9 10 5 Most Carried 10 | 1 10 10 8 8 8 8 8 8 10 10 Average Carried 7 | . 9 8 7 7 7 7 8 7 9 5 Final Capacity 10 | 8 10 8 8 8 8 8 8 10 10 5 Final Carried 10 | . 10 8 8 8 8 8 8 7 10 2 Class Distribution -------------------- 75% | Mutant 24% | Scavenger-Mutant Dominant Class ---------------- Mutant | -10/Materials Mutant | -9/Materials Mutant | -9/Mines Mutant | -8/Materials Mutant | -7/Factory Mutant | -6/Factory Mutant | -6/Lower Caves Mutant | -6/Lower Caves Mutant | -6/Zion Scavenger-Mutant | -6/Deep Caves Resources | -11 -10 -9 -9 -8 -7 -6 -6 -6 -6 -6 ----------- Run | Scr Mat Mat Min Mat Fac Fac Low Low Zio Dee Matter Collected 2015 | 235 357 48 100 454 75 146 169 181 67 183 Remotely 69 | . . . . . 69 . . . . . Salvage Created 2483 | . 375 241 81 308 102 272 387 142 . 575 Parts 146 | . 21 34 9 25 15 9 15 3 . 15 Haulers Intercepted 3 | . . . . 2 . 1 . . . . Recyclers Shooed 2 | . 2 . . . . . . . . . Parts Field Recycled . | . . . . . . . . . . . Retrieved Matter . | . . . . . . . . . . . Parts Self-Destructed 13 | . . . . . . . 6 7 . . Prevented 2 | . . . . . . . . 2 . . Kills | -11 -10 -9 -9 -8 -7 -6 -6 -6 -6 -6 ------- Run | Scr Mat Mat Min Mat Fac Fac Low Low Zio Dee Combat Hostiles Destroyed 97 | . 5 14 6 8 . 3 10 5 . 46 Melee 1 | . . . . . . . . 1 . . Guns 5 | . 5 . . . . . . . . . Cannons 7 | . . . . 4 . . . . . 3 AOE 83 | . . 14 6 4 . 2 10 4 . 43 Classes Destroyed 16 | . 3 4 1 2 1 . 1 1 . 3 Worker 6 | . . . . 2 2 2 . . . . Builder 4 | . . 1 . . 1 2 . . . . Tunneler 1 | . . 1 . . . . . . . . Hauler 3 | . . . . 2 . 1 . . . . Recycler 3 | . 2 . . . 1 . . . . . Operator 3 | . . . . . 1 2 . . . . Watcher 6 | . 2 1 . 2 1 . . . . . Swarmer 19 | . . 8 4 4 . . 3 . . . Grunt 22 | . 5 5 1 3 . 2 3 3 . . Duelist 1 | . . . 1 . . . . . . . Sentry 3 | . . 1 . 1 . 1 . . . . Hunter 2 | . . . . . . . . 2 . . Z-Light 9 | . . . . . . . . . . 9 Decomposer 3 | . . . . . . . 3 . . . Assembled 35 | . . . . . . . . . . 35 Golem 1 | . . . . . . . . . . 1 Thug 1 | . . . . . . . 1 . . . Fireman 3 | . . . . . . . 3 . . . Best Kill Streak 36 | . 2 11 4 7 3 7 4 3 . 36 Combat Bots Only 36 | . 2 9 4 4 . 2 4 3 . 36 Max Kills in Single Turn 25 | . 1 3 3 3 2 7 3 2 . 25 Gunslinging . | . . . . . . . . . . . Exploded 24 | . . 3 3 3 . 2 3 2 . 24 Melee 1 | . . . . . . . . 1 . . Uniques/NPCs Destroyed 1 | . . . . . . . . . . 1 Z-Imprinter (-6/Deep Caves) Combat | -11 -10 -9 -9 -8 -7 -6 -6 -6 -6 -6 -------- Run | Scr Mat Mat Min Mat Fac Fac Low Low Zio Dee Damage Taken 4946 | . 377 202 32 150 147 154 107 599 . 3178 Core 1047 | . 134 31 8 14 . 45 27 57 . 731 Absorbed by Shields . | . . . . . . . . . . . Redirected to Shielding 275 | . . . . . 20 18 28 56 . 153 Regen/Repaired (Parts) 72 | . . . . . . . . . 72 . Core Remaining (%) 86 | 100 46 . 90 97 100 . . . . . Volleys Fired 140 | . 32 17 6 32 5 2 6 6 . 34 Largest 2 | . 2 1 1 2 1 2 1 1 . 2 Hottest 84 | . 46 30 30 84 48 84 45 45 . 45 Shots Fired 182 | . 64 17 6 33 5 3 6 6 . 42 Gun 64 | . 64 . . . . . . . . . Cannon 34 | . . . . 29 4 1 . . . . Launcher 51 | . . 17 6 4 1 2 6 6 . 9 Special 33 | . . . . . . . . . . 33 Kinetic 98 | . 64 . . 29 4 1 . . . . Thermal . | . . . . . . . . . . . Explosive 84 | . . 17 6 4 1 2 6 6 . 42 Electromagnetic . | . . . . . . . . . . . Robot Hit Streak 32 | . 6 6 9 10 4 1 11 32 . 14 Robot Miss Streak 4 | . 4 1 . 3 2 3 1 1 . 4 Penetration Max . | . . . . . . . . . . . Secondary Targets . | . . . . . . . . . . . Shots Hit Robots 120 | . 39 8 3 16 2 6 10 7 . 29 Core Hits 288 | . 24 24 8 19 6 13 31 23 . 140 Critical Kills 4 | . . . . 3 . . . 1 . . Critical Parts Destroyed 7 | . . . . 2 . 3 2 . . . Critical Strikes 13 | . . . . 5 . 3 2 1 . 2 Destroy 5 | . . . . 5 . . . . . . Smash 6 | . . . . . . 3 2 1 . . Sever 2 | . . . . . . . . . . 2 Melee Attacks 17 | . . . . . . 5 4 2 6 . Impact 17 | . . . . . . 5 4 2 6 . Slashing . | . . . . . . . . . . . Piercing . | . . . . . . . . . . . Sneak Attacks 4 | . . . . . . 1 3 . . . Combat Hostiles . | . . . . . . . . . . . Follow-up Attacks . | . . . . . . . . . . . Damage Inflicted 14934 | . 491 999 340 798 358 1338 1335 817 . 8458 Guns 491 | . 491 . . . . . . . . . Cannons 459 | . . . . 398 61 . . . . . Explosions 12460 | . . 999 339 375 297 1115 974 785 . 7576 Melee 616 | . . . . . . 223 361 32 . . Ramming 26 | . . . 1 25 . . . . . . Kinetic 950 | . 491 . . 398 61 . . . . . Thermal 1130 | . . 16 . . 211 903 . . . . Explosive 11295 | . . 983 339 375 86 177 974 785 . 7576 Electromagnetic 35 | . . . . . . 35 . . . . Impact 616 | . . . . . . 223 361 32 . . Slashing 882 | . . . . . . . . . . 882 Piercing . | . . . . . . . . . . . Highest Corruption 1 | . 1 . . . . . . . . . Average Corruption 1 | . 1 . . . . . . . . . Corruption Purged . | . . . . . . . . . . . Corruption Blocked . | . . . . . . . . . . . Effects 5 | . 5 . . . . . . . . . Message Errors 1 | . 1 . . . . . . . . . Matter Fused 1 | . 1 . . . . . . . . . Heat Flow Errors 1 | . 1 . . . . . . . . . Data Loss (major) 1 | . 1 . . . . . . . . . Alerts 1 | . 1 . . . . . . . . . Overload Shots . | . . . . . . . . . . . Overflow Damage 1063 | . . 6 4 5 45 373 352 . . 278 Projectiles 74 | . . . . . . . . . . 74 Explosions 455 | . . 6 4 . 45 196 . . . 204 Melee 534 | . . . . 5 . 177 352 . . . Knockbacks 1 | . . . . 1 . . . . . . Impact . | . . . . . . . . . . . Kinetic 1 | . . . . 1 . . . . . . Secondary . | . . . . . . . . . . . Self-Inflicted Damage 319 | . . 1 . 60 132 . 10 25 . 91 Shots 10 | . . 1 . 1 2 . 1 1 . 4 Rammed 2 | . . . 1 1 . . . . . . Targets Rammed 2 | . . . 1 1 . . . . . . Kicked . | . . . . . . . . . . . Crushed . | . . . . . . . . . . . Highest Temperature 81 | . 72 39 1 81 16 19 5 49 . 48 Average Temperature 25 | . 25 16 1 31 7 14 2 25 . 22 Received Heat Transfer 984 | . 234 75 . 27 6 54 38 177 . 373 Siege Activations . | . . . . . . . . . . . Robots Corrupted . | . . . . . . . . . . . Combat Hostiles . | . . . . . . . . . . . Parts Fried 3 | . . . . . . 2 1 . . . Impact Corruptions 23 | . . . . 1 . 6 16 . . . Robots Melted . | . . . . . . . . . . . Combat Hostiles . | . . . . . . . . . . . Parts Melted . | . . . . . . . . . . . Heat Transferred 700 | . . 50 . . 150 500 . . . . Parts Sabotaged . | . . . . . . . . . . . Parts Stolen . | . . . . . . . . . . . Parts Stripped . | . . . . . . . . . . . Power Chain Reactions . | . . . . . . . . . . . Missiles Intercepted . | . . . . . . . . . . . Alert | -11 -10 -9 -9 -8 -7 -6 -6 -6 -6 -6 ------- Run | Scr Mat Mat Min Mat Fac Fac Low Low Zio Dee Peak Influence 686 | . 214 686 536 534 496 651 . . . . Initial 267 | . . 26 267 208 242 242 . . . . Average 263 | . 69 254 524 347 374 496 . . . . Maximum Alert Level 2 | . 1 2 2 2 2 2 . . . . Low Security (%) 46 | 100 95 49 . 9 . . . . . . Level 1 19 | . 4 22 1 39 54 36 . . . . Level 2 34 | . . 27 98 50 45 63 . . . . Level 3 . | . . . . . . . . . . . Level 4 . | . . . . . . . . . . . Level 5 . | . . . . . . . . . . . High Security . | . . . . . . . . . . . Max Security . | . . . . . . . . . . . Squads Dispatched 6 | . 1 3 . . 1 1 . . . . Investigation 2 | . . 2 . . . . . . . . Extermination . | . . . . . . . . . . . Reinforcement 4 | . 1 1 . . 1 1 . . . . Assault . | . . . . . . . . . . . Garrison . | . . . . . . . . . . . Intercept . | . . . . . . . . . . . Searches Triggered . | . . . . . . . . . . . Construction Impeded 1 | . . . . . 1 . . . . . Haulers Reinforced . | . . . . . . . . . . . Active Scanning Responses . | . . . . . . . . . . . Cargo Convoy Interrupts . | . . . . . . . . . . . Stealth | -11 -10 -9 -9 -8 -7 -6 -6 -6 -6 -6 --------- Run | Scr Mat Mat Min Mat Fac Fac Low Low Zio Dee Distress Signals 9 | . 2 4 . 3 . . . . . . Communications Jammed . | . . . . . . . . . . . Distress Signals . | . . . . . . . . . . . Times Spotted 136 | . 16 19 3 12 5 2 10 6 . 63 Peak Tracking Total 41 | . 5 7 2 5 2 1 4 4 . 41 Tactical Retreats 8 | . 4 1 . . 2 . . 1 . . Traps | -11 -10 -9 -9 -8 -7 -6 -6 -6 -6 -6 ------- Run | Scr Mat Mat Min Mat Fac Fac Low Low Zio Dee Traps Triggered 3 | . 1 2 . . . . . . . . Indirectly . | . . . . . . . . . . . Trap Hack Attempts . | . . . . . . . . . . . Triggered . | . . . . . . . . . . . Disarmed . | . . . . . . . . . . . Reprogrammed . | . . . . . . . . . . . Reused . | . . . . . . . . . . . Traps Extracted . | . . . . . . . . . . . Installed . | . . . . . . . . . . . Triggered 1 | . . . . . . . . 1 . . Machines | -11 -10 -9 -9 -8 -7 -6 -6 -6 -6 -6 ---------- Run | Scr Mat Mat Min Mat Fac Fac Low Low Zio Dee Machines Disabled 35 | . . 4 1 5 5 13 . . 3 4 Max in Single Turn 10 | . . 2 1 2 5 10 . . 1 1 Machines Sabotaged . | . . . . . . . . . . . Garrisons Compromised . | . . . . . . . . . . . Overloaded Fab Kills . | . . . . . . . . . . . Hacking | -11 -10 -9 -9 -8 -7 -6 -6 -6 -6 -6 --------- Run | Scr Mat Mat Min Mat Fac Fac Low Low Zio Dee Machines Accessed 2 | . . . . . . 2 . . . . Terminals . | . . . . . . . . . . . Fabricators . | . . . . . . . . . . . Repair Stations . | . . . . . . . . . . . Recycling Units 1 | . . . . . . 1 . . . . Scanalyzers 1 | . . . . . . 1 . . . . Garrison Access . | . . . . . . . . . . . Total Hacks 5 | . . . . . . 5 . . . . Successful 4 | . . . . . . 4 . . . . Failed 1 | . . . . . . 1 . . . . Catastrophic . | . . . . . . . . . . . Database Lockouts . | . . . . . . . . . . . Manual . | . . . . . . . . . . . Terminals . | . . . . . . . . . . . Fabricators . | . . . . . . . . . . . Repair Stations . | . . . . . . . . . . . Recycling Units 2 | . . . . . . 2 . . . . Scanalyzers 3 | . . . . . . 3 . . . . Garrison Access . | . . . . . . . . . . . Terminal Hacks . | . . . . . . . . . . . Fabricator Hacks . | . . . . . . . . . . . Repair Station Hacks . | . . . . . . . . . . . Recycling Unit Hacks 2 | . . . . . . 2 . . . . Process 1 | . . . . . . 1 . . . . Retrieve Matter 1 | . . . . . . 1 . . . . Scanalyzer 2 | . . . . . . 2 . . . . Insert Component 1 | . . . . . . 1 . . . . Analyze 1 | . . . . . . 1 . . . . Garrison Access Hacks . | . . . . . . . . . . . Unauthorized Hacks . | . . . . . . . . . . . Terminals . | . . . . . . . . . . . Fabricators . | . . . . . . . . . . . Repair Stations . | . . . . . . . . . . . Recycling Units . | . . . . . . . . . . . Scanalyzers . | . . . . . . . . . . . Garrison Access . | . . . . . . . . . . . Data Cores Recovered 1 | . . . . . 1 . . . . . Used . | . . . . . . . . . . . Hacking Detections 2 | . . . . . . 2 . . . . Full Trace Events . | . . . . . . . . . . . Feedback Events . | . . . . . . . . . . . Feedback Blocked . | . . . . . . . . . . . Robot Schematics Acquired . | . . . . . . . . . . . Robots Built . | . . . . . . . . . . . Authchips . | . . . . . . . . . . . Time . | . . . . . . . . . . . Total Robot Build Rating . | . . . . . . . . . . . Part Schematics Acquired 1 | . . . . . . 1 . . . . Parts Built . | . . . . . . . . . . . Authchips . | . . . . . . . . . . . Time . | . . . . . . . . . . . Total Part Build Rating . | . . . . . . . . . . . Parts Repaired . | . . . . . . . . . . . Time . | . . . . . . . . . . . Parts Recycled . | . . . . . . . . . . . Recycled Matter . | . . . . . . . . . . . Retrieved Matter . | . . . . . . . . . . . Retrieved Components . | . . . . . . . . . . . Parts Scanalyzed 1 | . . . . . . 1 . . . . Part Schematics Acquired 1 | . . . . . . 1 . . . . Parts Damaged . | . . . . . . . . . . . Bothacking | -11 -10 -9 -9 -8 -7 -6 -6 -6 -6 -6 ------------ Run | Scr Mat Mat Min Mat Fac Fac Low Low Zio Dee Used RIF Installer . | . . . . . . . . . . . Robots Hacked . | . . . . . . . . . . . Non-combat . | . . . . . . . . . . . Combat . | . . . . . . . . . . . Robot Hacks Applied . | . . . . . . . . . . . Relay Couplers Released . | . . . . . . . . . . . Fabnet Peak Effective % . | . . . . . . . . . . . Robots Rewired . | . . . . . . . . . . . Allies Hacked . | . . . . . . . . . . . Hacks Repelled . | . . . . . . . . . . . Allies | -11 -10 -9 -9 -8 -7 -6 -6 -6 -6 -6 -------- Run | Scr Mat Mat Min Mat Fac Fac Low Low Zio Dee Total Allies 10 | . . . 3 . . . . . 6 1 Largest Group 7 | . . . 3 3 . . . . 6 7 Highest-Rated Group 312 | . . . 40 40 . . . . 193 312 Highest-Rated Ally 119 | . . . 16 16 . . . . 51 119 Total Orders . | . . . . . . . . . . . Ally Attacks 59 | . . . . 8 . . . . . 51 Total Damage 2410 | . . . . 64 . . . . . 2346 Kills 6 | . . . . . . . . . . 6 Allies Corrupted . | . . . . . . . . . . . Allies Melted 1 | . . . 1 . . . . . . . Intel | -11 -10 -9 -9 -8 -7 -6 -6 -6 -6 -6 ------- Run | Scr Mat Mat Min Mat Fac Fac Low Low Zio Dee Robot Analysis Total . | . . . . . . . . . . . Derelict Logs Recovered 3 | . . . 1 . . . 1 . 1 . Drone Launches . | . . . . . . . . . . . Drone Recoveries . | . . . . . . . . . . . Exploration | -11 -10 -9 -9 -8 -7 -6 -6 -6 -6 -6 ------------- Run | Scr Mat Mat Min Mat Fac Fac Low Low Zio Dee Turns Passed 4290 | 63 909 213 346 263 282 218 173 250 399 1174 Spaces Moved 4823 | 49 501 234 434 255 483 316 319 491 736 1005 Core 76 | 10 . . . . . . . . . 66 Treads . | . . . . . . . . . . . Legs 1137 | 39 460 . . . . . . . . 638 Wheels . | . . . . . . . . . . . Hover 3610 | . 41 234 434 255 483 316 319 491 736 301 Flight . | . . . . . . . . . . . Fastest Speed 42 | 50 116 52 52 48 48 42 42 42 48 48 Average Speed 71 | 105 144 66 71 50 48 47 42 43 48 96 Slowest Speed 300 | 120 190 112 112 52 48 48 42 48 48 300 Overloaded Moves . | . . . . . . . . . . . Propulsion Burnouts . | . . . . . . . . . . . Robots Hopped . | . . . . . . . . . . . Cave-ins Triggered . | . . . . . . . . . . . Exploration Rate (%) 48 | 3 79 24 89 26 23 13 52 72 81 75 Regions Visited 10 Branch Regions 5 Pre-discovered Areas 3 | . . . 1 . . . . . 2 . Known Exits Taken . | . . . . . . . . . . . Unknown Exits Taken 10 | 1 1 1 1 1 1 1 1 1 1 . Scrap Searched 19 | . . . 2 . . . 3 9 5 . Spaces Dug 15 | . . . . . . . . . . 15 Terrain Destroyed 632 | . . 64 43 39 29 72 130 121 . 134 Melee . | . . . . . . . . . . . Projectile 12 | . . . . 10 . . . . . 2 AOE 620 | . . 64 43 29 29 72 130 121 . 132 Terrain Rammed . | . . . . . . . . . . . Walls Destroyed . | . . . . . . . . . . . Machines Disabled . | . . . . . . . . . . . Actions | -11 -10 -9 -9 -8 -7 -6 -6 -6 -6 -6 --------- Run | Scr Mat Mat Min Mat Fac Fac Low Low Zio Dee Total 5471 | 57 632 272 462 358 532 373 338 513 771 1163 Wait 281 | . 48 13 16 52 9 29 10 7 13 84 Move 4813 | 48 500 233 433 254 482 315 318 490 735 1005 Hop . | . . . . . . . . . . . Pick Up 54 | 1 20 2 1 3 10 4 . 2 6 5 Fast Attach 44 | 6 4 2 2 3 5 6 . . 3 13 Attach 22 | 1 3 3 . 1 3 2 . 1 1 7 Detach 3 | . . . . . . . . . 1 2 Swap 22 | . 7 . 1 5 3 2 . 2 1 1 Drop 73 | 1 18 2 2 7 15 8 . 3 5 12 Fire 140 | . 32 17 6 32 5 2 6 6 . 34 Melee 17 | . . . . . . 5 4 2 6 . Ram 2 | . . . 1 1 . . . . . . Kick . | . . . . . . . . . . . Crush . | . . . . . . . . . . . Escape Stasis . | . . . . . . . . . . . Rewire . | . . . . . . . . . . . Trap . | . . . . . . . . . . . Miscellaneous . | . . . . . . . . . . . Route ------- -11/Scrapyard -10/Materials (discovered 3 exits: [*Mat x3]) -9/Materials (discovered 2 exits: [*Mat] / [*Min]) -9/Mines -8/Materials -7/Factory -6/Factory -6/Lower Caves -6/Lower Caves (discovered 2 exits: [*Fac] / [*Zio]) -6/Zion (discovered 2 exits: [*Dee] / [*Pro]) -6/Deep Caves History --------- Turn | Location | Event 23 | -11/Scrapyard | Discovered new exit (range 15) 64 | -11/Scrapyard | Entered Materials 317 | -10/Materials | Build established: Mutant 362 | -10/Materials | Discovered new exit (range 5) 477 | -10/Materials | Discovered new exit (range 6) 624 | -10/Materials | Core integrity fell below 50% 883 | -10/Materials | Discovered new exit (range 13) 973 | -10/Materials | Entered another Materials area 973 | -9/Materials | Evolved 2 slots: Propulsion x1, Utility x1 1151 | -9/Materials | Discovered new exit (range 18) 1165 | -9/Materials | Discovered new exit (range 8) 1177 | -9/Materials | Destroyed 9 combat bots 1186 | -9/Materials | Entered Mines 1206 | -9/Mines | Learned location of Storage (-8) 1237 | -9/Mines | Met a Derelict bent on vengeance 1263 | -9/Mines | Assisted by bots powering up and referring to "LRC-V3" 1354 | -9/Mines | A weapon hastily lodged in a ceiling crevice suddenly fell to the ground 1502 | -9/Mines | Discovered new exit (range 9) 1532 | -9/Mines | Entered Materials 1532 | -8/Materials | Accompanied by 3 allies 1532 | -8/Materials | Evolved 2 slots: Propulsion x1, Utility x1 1730 | -8/Materials | Discovered new exit (range 10) 1795 | -8/Materials | Entered Factory 1795 | -7/Factory | Evolved 2 slots: Utility x2 2049 | -7/Factory | Discovered new exit (range 15) 2077 | -7/Factory | Entered another Factory area 2077 | -6/Factory | Evolved 2 slots: Propulsion x1, Utility x1 2168 | -6/Factory | Found Prototype Launcher 2168 | -6/Factory | Identified Rocket Array 2268 | -6/Factory | Discovered new exit (range 12) 2295 | -6/Factory | Entered Lower Caves 2318 | -6/Lower Caves | Ambushed by wild Derelicts 2384 | -6/Lower Caves | Learned Factory stockpile data 2454 | -6/Lower Caves | Discovered new exit (range 14) 2468 | -6/Lower Caves | Entered another Lower Caves area 2487 | -6/Lower Caves | Discovered new exit (range 16) 2529 | -6/Lower Caves | Spotted B-75 Beast 2712 | -6/Lower Caves | Discovered new exit (range 14) 2718 | -6/Lower Caves | Entered Zion 2734 | -6/Zion | Discovered new exit (range 15) 2750 | -6/Zion | Gained Derelict followers 2797 | -6/Zion | Found Prototype Special Weapon 2797 | -6/Zion | Identified RU-N14's Throwing Claymores 2804 | -6/Zion | Found RU-N14's Throwing Claymores 2809 | -6/Zion | Found RU-N14's Throwing Claymores 2811 | -6/Zion | Found RU-N14's Throwing Claymores 2831 | -6/Zion | Learned location of Extension (-6) 2875 | -6/Zion | Gained Derelict followers 2935 | -6/Zion | Learned 8 Factory zone layouts 2949 | -6/Zion | Learned location of Warlord (-4) 3011 | -6/Zion | Received a hallucinogenic algorithm 3107 | -6/Zion | Discovered new exit (range 3) 3107 | -6/Zion | Saw the warning signs outside the Deep Caves entrance 3117 | -6/Zion | Entered Deep Caves 3117 | -6/Deep Caves | Accompanied by 6 allies 3118 | -6/Deep Caves | Met 5H-AD0 3252 | -6/Deep Caves | Attacked by Z-Imprinter 3266 | -6/Deep Caves | Destroyed Z-Imprinter 3312 | -6/Deep Caves | Z-Facility disabled 3344 | -6/Deep Caves | Lost 6 parts (1p3n1u1w) 3602 | -6/Deep Caves | Found Prototype Protection 3602 | -6/Deep Caves | Identified Zio. Heavy Carapace 3611 | -6/Deep Caves | Found Zio. Heavy Carapace 3702 | -6/Deep Caves | Build established: Scavenger-Mutant 4070 | -6/Deep Caves | Found Prototype Protection 4070 | -6/Deep Caves | Identified Zio. Weapon Casing 4078 | -6/Deep Caves | Found Zio. Weapon Casing 4091 | -6/Deep Caves | Found Zio. Weapon Casing 4209 | -6/Deep Caves | Spotted as-84491 4210 | -6/Deep Caves | Exposed GOLEM chamber 4249 | -6/Deep Caves | Triggered Deep Caves wall 4250 | -6/Deep Caves | Spotted AS-11381 4251 | -6/Deep Caves | Spotted AS-88124 4254 | -6/Deep Caves | Core integrity fell below 50% 4280 | -6/Deep Caves | Core integrity fell below 20% 4287 | -6/Deep Caves | Destroyed 36 combat bots 4291 | -6/Deep Caves | Destroyed by as-23105 with Assembled Shotgun Last Messages --------------- 04274_ A GOLEM Unit tumbles out of the Wall Chamber. 04275_ as-33419 released from Mobile Assembly Unit. 04278_ GOLEM Unit springs to life. 04279_ as-40377 GOLEM Unit beginning Prototype Leg integration. 04279_ as-63128 GOLEM Unit beginning Prototype Leg integration. 04280_ AA-J9K(g) destroyed. 04281_ RU-N14's Throwing Claymores destroyed. 04283_ as-42355 released from Mobile Assembly Unit. 04285_ as-45129 released from Mobile Assembly Unit. 04285_ Penetrated by Slug. 04286_ Slug penetrates as-63128. 04286_ as-23105 knocked back. 04287_ A GOLEM Unit tumbles out of the Wall Chamber. 04287_ Penetrated by Slug. 04288_ as-28858 knocked back. 04289_ Penetrated by Slug. 04289_ Discarded Launcher Guidance Computer. 04290_ 0B-849(M) destroyed. 04290_ Penetrated by Slug. 04291_ GOLEM Unit springs to life. Map ----- +----------------------------------------------------+ | ?????????????????????????????????? | | ?????????????????????????????????? | | ?????????????????????????????????? | | ?????????????????????????????????? | | ?????????????????????????????????? | | ?????????? ???????????????? | | ?????????" ???#???????? | | ????????"" [ #?? #??????? | | ??????### ] ### #??????? | | ??""""" # ??????? | | ??" A ##?????? | | ??" ]g s ##?###? | | ??" G ] ## ? | | ??? ] #?? ? | | ???? A = ##?# ? | | ????? a g #?# # | | ?????? a g #?# | | ??????? a = #?# | | ????????# #??# | | ???????""G = [ #??# | | ??????#"!G [ #?## | | ??????#!!G a l ### | | ??????# GG =! "#? | | ??????# G #?# | | ????????# a ### | | ????????"@ ** "## | | ????????" a #### | | ????????" % | | ????????""" | | ????????" | | ????????"" ##### | | ????????" s h #???? | | ????????"" ##???? | | ????????" # # #????? | | ????????" #### ## ## ##????? | | ????????""" ###??# ## ####?????? | | ?????????" ????#### #????????? | | ?????????######????????#?????????? | | | | | | | | | | | | | | | | | | | | | | | | | +----------------------------------------------------+ Best States ------------- Heat Dissipation 39 Energy Generation 27 Energy Capacity 315 Matter Stores 300 Matter Capacity 300 Sight Range 20 Robot Scan Range 16 Terrain Scan Density 10 Additional Mass Support 9 Armor Coverage 1425 Resistance: KI 20 Propulsion Shielding 66 Weapon Shielding 100 Weapon Cycling 15 Evasion (%) 56 Launcher Accuracy 40 Offensive Hacking 10 Item Schematics ----------------- Rocket Array | -6/Factory | Scanalyzed Robot Schematics ------------------ None Fabricated ------------ Nothing Alien Tech Used ----------------- None Achievements -------------- Boltbath Killing Spree Challenges ------------ None Game ------ Seed UtilityMetafieldKit Manual? 0 Play Time 00:37:57 Cumulative 378.6 hours Start 2022.12.29 @ 21:53:07 End 2022.12.29 @ 22:35:06 Sessions 1 Manual Loads 0 Difficulty Rogue Special Mode None Game No. 678 Rogue 523 Adventurer 148 Explorer 7 Win Type - Total 14 Types 12/0/1/1/0/0/0/0/0 Lore% 78 Gallery% 88 Achievement% 71 Wizard Run 0 Options --------- ASCII 0 Keyboard 0 Movement Numpad Keybinds 0 Fullscreen 2 Font 18/SmallcapsGlow Map View 76x50 Tactical HUD 1 Map Filters NONE Filters NONE Steam 1 RUN: bbdf192d-a12a-4eeb-ad87-f4fbeeca670e